Cogmind - Beta 13 @@@ ROGUE MODE // 2024.05.12 @ 15:48:40 Player: Tyrockal Result: Self-destructed Performance ------------- Evolutions (2) 1000 Regions Visited (5) 1000 Robots Destroyed (41) 205 Value Destroyed (1127) 1127 Prototype IDs (1) 20 Alien Tech Used (0) 0 Bonus (0) 0 TOTAL SCORE: 3352 Bonus ------- None Cogmind --------- Core Integrity 271/550 Matter 49/300 Energy 99/100 System Corruption 8% Temperature Cool (32) Movement Core (50) Location -8/Materials Parts ------- > --- POWER (2) -------- (None) > --- PROPULSION (3) --- (None) > --- UTILITY (4) ------ (None) > --- WEAPON (2) ------- (None) > --- INVENTORY (5) ---- Improved Ion Engine Heat Sink Sensor Array Heavy Particle Cannon Light Assault Rifle Peak State ------------ > --- POWER ------------ Reinforced Ion Engine > --- PROPULSION ------- Titanium Leg Titanium Leg Titanium Leg > --- UTILITY ---------- Trap Scanner Light Armor Plating Reflective Plating > --- WEAPON ----------- Heavy Particle Cannon Minigun > --- INVENTORY -------- Ion Engine High-capacity Battery Hacking Suite Rocket Launcher Rocket Launcher [Rating: 24] Favorites ----------- Power Ion Engine Engine Ion Engine Propulsion Light Treads Treads Light Treads Leg Titanium Leg Utility Light Armor Plating Device Sensor Array Storage High-capacity Battery Hackware Hacking Suite Protection Light Armor Plating Weapon Heavy Particle Cannon Energy Gun Medium Laser Energy Cannon Heavy Particle Cannon Ballistic Gun Light Assault Rifle Launcher Rocket Launcher Special Weapon Mining Laser Build | -11 -10 -10 -9 -9 -8 ------- Run | Yrd Mat Min Mat Min Mat Slots Evolved 4 | . . . 2 . 2 Power 1 | . . . . . 1 Propulsion 1 | . . . 1 . . Utility 2 | . . . 1 . 1 Weapon . | . . . . . . Parts Attached 50 | 6 9 9 22 . 4 Power 5 | 1 . 1 3 . . Engine 5 | 1 . 1 3 . . Core . | . . . . . . Reactor . | . . . . . . Propulsion 12 | 2 . 2 8 . . Treads 6 | 2 . . 4 . . Leg 6 | . . 2 4 . . Wheel . | . . . . . . Hover . | . . . . . . Flight . | . . . . . . Utility 15 | 1 4 2 6 . 2 Device 6 | . 1 . 4 . 1 Storage 4 | 1 2 . 1 . . Processor . | . . . . . . Hackware 1 | . . . . . 1 Protection 4 | . 1 2 1 . . Artifact . | . . . . . . Weapon 18 | 2 5 4 5 . 2 Energy Gun 4 | 2 2 . . . . Energy Cannon 3 | . . 2 1 . . Ballistic Gun 6 | . 1 2 3 . . Ballistic Cannon . | . . . . . . Launcher 3 | . . . 1 . 2 Special Weapon 2 | . 2 . . . . Impact Weapon . | . . . . . . Slashing Weapon . | . . . . . . Piercing Weapon . | . . . . . . Special Melee Weapon . | . . . . . . Unidentified Prototypes 1 | . . . 1 . . Parts Lost 16 | . 1 . 6 . 9 Power 2 | . . . 1 . 1 Propulsion 5 | . . . 2 . 3 Utility 5 | . . . 2 . 3 Weapon 4 | . 1 . 1 . 2 Highest Loss Streak 8 | . 1 . 4 . 8 To Critical Strikes 1 | . . . . . 1 Average Slot Usage (%) 94 | . 98 99 93 100 68 Engine 11 | . 14 14 10 11 7 Treads 20 | . 28 14 10 33 23 Leg 8 | . . 13 20 . . Device 12 | . 3 6 14 22 12 Storage 2 | . 15 . . . . Protection 13 | . 8 20 15 11 3 Energy Gun 3 | . 22 . . . . Energy Cannon 7 | . . 10 9 11 . Ballistic Gun 7 | . 3 10 8 11 . Launcher 2 | . . . 2 . 13 Special Weapon 1 | . 1 6 . . . Naked Turns 30 | . . . . . 30 Heaviest Build 28 | 14 18 21 28 19 20 Greatest Support 60 | 40 40 40 60 60 60 Greatest Overweight (x) 1 | . . 1 1 . . Average Overweight (x) . | . . . . . . Largest Inventory Capacity 8 | 8 8 5 5 5 5 Average Capacity 5 | 7 6 5 5 5 5 Most Carried 5 | 4 5 5 5 5 5 Average Carried 4 | 2 4 4 4 5 4 Final Capacity 8 | 8 5 5 5 5 5 Final Carried 5 | 4 5 5 5 5 5 Class Distribution -------------------- 59% | Mutant 40% | Scavenger-Mutant Dominant Class ---------------- Mutant | -10/Materials Mutant | -10/Mines Mutant | -9/Materials Scavenger-Mutant | -9/Mines Scavenger-Mutant | -8/Materials Resources | -11 -10 -10 -9 -9 -8 ----------- Run | Yrd Mat Min Mat Min Mat Matter Collected 1077 | 183 107 201 442 114 30 Remotely . | . . . . . . Salvage Created 1098 | . 206 155 428 133 176 Parts 83 | . 12 16 35 3 17 Haulers Intercepted 1 | . . . . . 1 Recyclers Shooed . | . . . . . . Parts Field Recycled . | . . . . . . Retrieved Matter . | . . . . . . Parts Self-Destructed . | . . . . . . Prevented . | . . . . . . Kills | -11 -10 -10 -9 -9 -8 ------- Run | Yrd Mat Min Mat Min Mat Combat Hostiles Destroyed 33 | . 4 8 10 3 8 Guns 7 | . 3 1 3 . . Cannons 15 | . . 6 7 2 . AOE 10 | . 1 1 . . 8 Classes Destroyed 8 | . 2 1 4 . 1 Builder 2 | . . . 1 . 1 Hauler 1 | . . . . . 1 Operator 1 | . . . 1 . . Watcher 4 | . 1 . 1 . 2 Swarmer 12 | . . 6 3 . 3 Grunt 15 | . 4 2 3 3 3 Brawler 2 | . . . 1 . 1 Sentry 4 | . . . 3 . 1 Best Kill Streak 8 | . 2 3 4 3 8 Combat Bots Only 7 | . 2 3 3 3 7 Max Kills in Single Turn 3 | . 1 2 2 1 3 Gunslinging . | . . . . . . Exploded 3 | . 1 1 . . 3 Melee . | . . . . . . Uniques/NPCs Destroyed . | . . . . . . Combat | -11 -10 -10 -9 -9 -8 -------- Run | Yrd Mat Min Mat Min Mat Hostile Shots Fired 229 | . 24 24 105 13 63 Missed 50 | . 5 5 26 . 14 Damage Taken 2290 | . 231 144 892 172 851 Core 574 | . 30 20 179 66 279 Absorbed by Shields . | . . . . . . Ignored by Resistances 15 | . . 3 12 . . Core Remaining (%) 72 | 100 . 80 . 38 . Volleys Fired 98 | . 13 16 45 11 13 Largest 2 | . 2 2 2 2 2 Hottest 200 | . 90 200 100 95 66 Shots Fired 190 | . 26 32 84 22 26 Gun 90 | . 26 14 39 11 . Cannon 70 | . . 14 45 11 . Launcher 26 | . . . . . 26 Special 4 | . . 4 . . . Kinetic 64 | . . 14 39 11 . Thermal 87 | . 13 18 45 11 . Explosive 26 | . . . . . 26 Electromagnetic 13 | . 13 . . . . Robot Hit Streak 10 | . 10 5 6 8 3 Robot Miss Streak 10 | . 2 3 10 5 3 Penetration Max . | . . . . . . Secondary Targets 1 | . 1 . . . . Max Gunslinging Chain 1 | . 1 . . . . Shots Hit Robots 89 | . 20 13 38 8 10 Core Hits 53 | . 8 8 15 3 19 Critical Kills 1 | . . . . 1 . Critical Parts Destroyed . | . . . . . . Critical Strikes 3 | . 2 . . 1 . Burn 2 | . 2 . . . . Meltdown 1 | . . . . 1 . Melee Attacks . | . . . . . . Impact . | . . . . . . Slashing . | . . . . . . Piercing . | . . . . . . Sneak Attacks . | . . . . . . Combat Hostiles . | . . . . . . Follow-up Attacks . | . . . . . . Damage Inflicted 2792 | . 327 336 896 149 1084 Guns 721 | . 261 65 371 24 . Cannons 875 | . . 225 525 125 . Explosions 1172 | . 66 22 . . 1084 Melee . | . . . . . . Ramming . | . . . . . . Kinetic 460 | . . 65 371 24 . Thermal 1073 | . 152 271 525 125 . Explosive 1084 | . . . . . 1084 Electromagnetic 175 | . 175 . . . . Impact . | . . . . . . Slashing . | . . . . . . Piercing . | . . . . . . Highest Corruption 8 | . . . . . 8 Average Corruption 7 | . . . . . 7 Corruption Purged . | . . . . . . Corruption Blocked . | . . . . . . Effects 3 | . . . . . 3 Heat Flow Errors 1 | . . . . . 1 Energy Discharges 1 | . . . . . 1 Parts Rejected 1 | . . . . . 1 Overload Shots . | . . . . . . Overflow Damage 66 | . . 7 10 . 49 Projectiles 17 | . . 7 10 . . Explosions 49 | . . . . . 49 Melee . | . . . . . . Knockbacks . | . . . . . . Impact . | . . . . . . Kinetic . | . . . . . . Secondary . | . . . . . . Self-Inflicted Damage . | . . . . . . Shots . | . . . . . . Rammed . | . . . . . . Targets Rammed . | . . . . . . Kicked . | . . . . . . Crushed . | . . . . . . Highest Temperature 690 | . 306 365 690 236 262 Average Temperature 174 | . 118 132 217 114 119 Received Heat Transfer 711 | . 87 12 144 72 396 Effects 35 | . . 3 32 . . Shutdowns 7 | . . . 7 . . Energy Bleed 5 | . . 1 4 . . Interference 8 | . . 2 6 . . Matter Decay 6 | . . . 6 . . Damage (minor) 3 | . . . 3 . . Damage (major) 5 | . . . 5 . . Damage (core) 1 | . . . 1 . . Siege Activations . | . . . . . . Robots Corrupted . | . . . . . . Combat Hostiles . | . . . . . . Parts Fried 1 | . 1 . . . . Impact Corruptions . | . . . . . . Robots Melted 1 | . . . . 1 . Combat Hostiles 1 | . . . . 1 . Parts Melted 1 | . . . . 1 . Heat Transferred 1902 | . 507 433 777 185 . Parts Sabotaged . | . . . . . . Parts Stolen . | . . . . . . Parts Stripped . | . . . . . . Power Chain Reactions 1 | . 1 . . . . Alert | -11 -10 -10 -9 -9 -8 ------- Run | Yrd Mat Min Mat Min Mat Peak Influence 377 | . 181 173 318 96 377 Initial 81 | . . . 27 81 29 Average 103 | . 67 26 160 63 256 Maximum Alert Level 1 | . . . 1 . 1 Low Security (%) 81 | 100 100 100 61 100 32 Level 1 18 | . . . 38 . 67 Level 2 . | . . . . . . Level 3 . | . . . . . . Level 4 . | . . . . . . Level 5 . | . . . . . . High Security . | . . . . . . Max Security . | . . . . . . Squads Dispatched 4 | . 1 1 1 . 1 Investigation 2 | . 1 1 . . . Extermination . | . . . . . . Reinforcement 2 | . . . 1 . 1 Assault . | . . . . . . Garrison . | . . . . . . Intercept . | . . . . . . Searches Triggered . | . . . . . . Construction Impeded . | . . . . . . Haulers Reinforced . | . . . . . . Active Scanning Responses . | . . . . . . Cargo Convoy Interrupts . | . . . . . . Stealth | -11 -10 -10 -9 -9 -8 --------- Run | Yrd Mat Min Mat Min Mat Distress Signals 3 | . . . 2 . 1 Communications Jammed . | . . . . . . Distress Signals . | . . . . . . Times Spotted 65 | . 11 8 20 4 22 Peak Tracking Total 11 | . 8 3 5 3 11 Tactical Retreats . | . . . . . . Traps | -11 -10 -10 -9 -9 -8 ------- Run | Yrd Mat Min Mat Min Mat Traps Triggered 3 | . 2 . . . 1 Indirectly . | . . . . . . Trap Hack Attempts . | . . . . . . Triggered . | . . . . . . Disarmed . | . . . . . . Reprogrammed . | . . . . . . Reused . | . . . . . . Traps Extracted . | . . . . . . Installed . | . . . . . . Triggered . | . . . . . . Machines | -11 -10 -10 -9 -9 -8 ---------- Run | Yrd Mat Min Mat Min Mat Machines Disabled 7 | . 1 2 1 . 3 Max in Single Turn 2 | . 1 2 1 . 1 Machines Repaired . | . . . . . . Machines Dismantled . | . . . . . . Machines Sabotaged . | . . . . . . Overloaded Fab Kills . | . . . . . . Hacking | -11 -10 -10 -9 -9 -8 --------- Run | Yrd Mat Min Mat Min Mat Machines Accessed 6 | . 3 1 2 . . Terminals 4 | . 2 . 2 . . Fabricators . | . . . . . . Repair Stations . | . . . . . . Recycling Units 1 | . 1 . . . . Scanalyzers . | . . . . . . Garrison Access . | . . . . . . Total Hacks 11 | . 7 1 3 . . Successful 4 | . 2 1 1 . . Failed 7 | . 5 . 2 . . Catastrophic . | . . . . . . Database Lockouts . | . . . . . . Manual 3 | . 3 . . . . Terminals 8 | . 5 . 3 . . Fabricators . | . . . . . . Repair Stations . | . . . . . . Recycling Units 2 | . 2 . . . . Scanalyzers . | . . . . . . Garrison Access . | . . . . . . Terminal Hacks 4 | . 2 1 1 . . Record 1 | . 1 . . . . Open Door 1 | . . 1 . . . Branch Access Points 1 | . 1 . . . . Repair Station Index 1 | . . . 1 . . Fabricator Hacks . | . . . . . . Repair Station Hacks . | . . . . . . Recycling Unit Hacks . | . . . . . . Scanalyzer . | . . . . . . Garrison Access Hacks . | . . . . . . Unauthorized Hacks . | . . . . . . Terminals . | . . . . . . Fabricators . | . . . . . . Repair Stations . | . . . . . . Recycling Units . | . . . . . . Scanalyzers . | . . . . . . Garrison Access . | . . . . . . Data Cores Recovered . | . . . . . . Used . | . . . . . . Hacking Detections 5 | . 3 . 2 . . Full Trace Events 1 | . 1 . . . . Feedback Events . | . . . . . . Feedback Blocked . | . . . . . . Robot Schematics Acquired . | . . . . . . Robots Built . | . . . . . . Authchips . | . . . . . . Time . | . . . . . . Total Robot Build Rating . | . . . . . . Part Schematics Acquired . | . . . . . . Parts Built . | . . . . . . Authchips . | . . . . . . Time . | . . . . . . Total Part Build Rating . | . . . . . . Parts Repaired . | . . . . . . Time . | . . . . . . Parts Recycled . | . . . . . . Recycled Matter . | . . . . . . Retrieved Matter . | . . . . . . Retrieved Components . | . . . . . . Parts Scanalyzed . | . . . . . . Part Schematics Acquired . | . . . . . . Parts Damaged . | . . . . . . Bothacking | -11 -10 -10 -9 -9 -8 ------------ Run | Yrd Mat Min Mat Min Mat Used RIF Installer . | . . . . . . Robots Hacked . | . . . . . . Non-combat . | . . . . . . Combat . | . . . . . . Robot Hacks Applied . | . . . . . . Relay Couplers Released . | . . . . . . Fabnet Peak Effective % . | . . . . . . Robots Rewired . | . . . . . . Allies Hacked . | . . . . . . Hacks Repelled . | . . . . . . Allies | -11 -10 -10 -9 -9 -8 -------- Run | Yrd Mat Min Mat Min Mat Total Allies . | . . . . . . Largest Group . | . . . . . . Highest-Rated Group . | . . . . . . Highest-Rated Ally . | . . . . . . Total Orders . | . . . . . . Ally Attacks . | . . . . . . Total Damage . | . . . . . . Kills . | . . . . . . Allies Corrupted . | . . . . . . Allies Melted . | . . . . . . Intel | -11 -10 -10 -9 -9 -8 ------- Run | Yrd Mat Min Mat Min Mat Robot Analysis Total . | . . . . . . Derelict Logs Recovered 4 | . . 2 . 2 . Drone Launches . | . . . . . . Drone Recoveries . | . . . . . . Exploration | -11 -10 -10 -9 -9 -8 ------------- Run | Yrd Mat Min Mat Min Mat Turns Passed 2780 | 99 441 574 783 571 312 Spaces Moved 1300 | 55 212 312 342 200 179 Core 43 | 1 . . . . 42 Treads 853 | 54 212 126 124 200 137 Legs 404 | . . 186 218 . . Wheels . | . . . . . . Hover . | . . . . . . Flight . | . . . . . . Fastest Speed 50 | 50 160 105 105 160 50 Average Speed 143 | 158 160 127 142 160 134 Slowest Speed 200 | 160 160 180 200 160 160 Overloaded Moves . | . . . . . . Propulsion Burnouts . | . . . . . . Robots Hopped . | . . . . . . Cave-ins Triggered . | . . . . . . Exploration Rate (%) 37 | 4 46 67 30 57 20 Regions Visited 5 Branch Regions 2 Pre-discovered Areas . | . . . . . . Known Exits Taken 3 | . 1 . 1 1 . Unknown Exits Taken 2 | 1 . 1 . . . Scrap Searched 4 | . . 2 . 2 . Spaces Dug . | . . . . . . Terrain Destroyed 153 | . 4 21 22 6 100 Melee . | . . . . . . Projectile 35 | . . 7 22 6 . AOE 118 | . 4 14 . . 100 Terrain Rammed . | . . . . . . Walls Destroyed . | . . . . . . Machines Disabled . | . . . . . . Actions | -11 -10 -10 -9 -9 -8 --------- Run | Yrd Mat Min Mat Min Mat Total 2017 | 64 286 453 560 431 223 Wait 533 | . 47 103 135 221 27 Move 1295 | 54 211 311 341 199 179 Hop . | . . . . . . Pick Up 13 | 4 1 3 5 . . Fast Attach 26 | 6 5 5 10 . . Attach 7 | . 1 1 4 . 1 Detach 1 | . 1 . . . . Swap 17 | . 3 3 8 . 3 Drop 27 | . 4 11 12 . . Fire 98 | . 13 16 45 11 13 Melee . | . . . . . . Ram . | . . . . . . Kick . | . . . . . . Crush . | . . . . . . Escape Stasis . | . . . . . . Rewire . | . . . . . . Trap . | . . . . . . Miscellaneous . | . . . . . . Route ------- -11/Scrapyard -10/Materials (discovered 2 exits: *Mat / *Min) -10/Mines -9/Materials (discovered 3 exits: Mat / *Min x2) -9/Mines -8/Materials History --------- Turn | Location | Event 11 | -11/Scrapyard | Discovered new exit (range 13) 100 | -11/Scrapyard | Entered Materials 309 | -10/Materials | Build established: Mutant 393 | -10/Materials | Discovered new exit (range 13) 470 | -10/Materials | Identified exit to Mines 541 | -10/Materials | Entered Mines 655 | -10/Mines | Learned location of 1 exit from Materials 814 | -10/Mines | Met a Derelict shopkeep closing up shop 904 | -10/Mines | Learned location of 2 exits from Materials 917 | -10/Mines | Discovered new exit (range 8) 937 | -10/Mines | Received a Rocket Launcher from a helpful Derelict 1115 | -10/Mines | Entered Materials 1115 | -9/Materials | Evolved 2 slots: Propulsion x1, Utility x1 1116 | -9/Materials | Identified exit to Materials 1116 | -9/Materials | Identified exit to Mines 1582 | -9/Materials | Lost 4 parts (2n1u1w) 1898 | -9/Materials | Entered Mines 1902 | -9/Mines | Build established: Scavenger-Mutant 1962 | -9/Mines | Learned Materials interactive machine intel 1986 | -9/Mines | Found a hidden stash of uninstalled traps 1987 | -9/Mines | Assembled infested the area 2289 | -9/Mines | Core integrity fell below 50% 2469 | -9/Mines | Entered Materials 2469 | -8/Materials | Evolved 2 slots: Power x1, Utility x1 2470 | -8/Materials | Loaded intel: 19 interactive machine locations 2624 | -8/Materials | Destroyed 7 combat bots 2781 | -8/Materials | Self-destructed Last Messages --------------- Repair Station disabled. The unstable cave ceiling collapses. K-01 Serf collects debris. Imp. Ion Engine destroyed. Hacking Suite destroyed. System corrupted by crushing effect (+2). System corrupted by crushing effect (+1). Critical hit (Burn: +37). K-01 Serf collects debris. Lgt. Treads destroyed. Critical hit (Burn: +37). Lgt. Treads destroyed. System corrupted: Energy discharge (-31). ALERT: Suspicious intruders detected, dispatching Cutter reinforcements to area. System corrupted: Heat flow error (+293). Knocked back. K-01 Serf destroyed. Triggered Explosive Trap. An explosion rips through the floor. Map ----- +----------------------------------------------------+ | ????????????????????????????? | | ????????????????????????????? | | ????????????????????????????? | | ????????????????????"???????? | | ????????????????????T???????? | | ????????????????????"???????? | | ????????????????????????????? | | ????????????????????????????? | | ????????????????????????????? | | ????????????????????????????? | | ????????????????????????????? | | ????????????????????????????? | | ???????????????H????????????? | | ????????????????????????????? | | ??##???## ?????????????????? | | ?? ? # #????????????????? | | ??? """ # #????????????????? | | ??? """ # #????????????????? | | ??? """ # #????????????????? | | ??? # #????????????????? | | ??? ?# #????????????????? | | ??? ?# #????????"???????? | | ??## ### #????????T??????## | | ??# # ""?????"??????# | | ??# w/ ""????????????# | | ??# @ " #???????????????# | | ??# c T #???????????????# | | ??# " #???????????????# | | ??## ################# | | ???# + | | ???#cc# ###########/##### | | ???# # % # ### | | ??## # # #?? | | ??#[ *=""" """ """ # #?? | | ??# Y]#%""" """ "???# #?? | | ??# #=""" """ ????# #?? | | ??# # ????###+#### | | ??## ##########??????# !!/ | | ???# #???????????????# !// | | ???# +???????????????# !// | | ???# #???????????????# | | ???# #???????????????# | | ???# #???????????????# | | ???# #???????????????#####+ | | ???# ????????????????????# | | ???# ??"""???????????????# | | ???# ??"T"????????######## | | ???# ?????????????# | | ???? ????????????## | | ??????????????????# #[ | +----------------------------------------------------+ Best States ------------- Heat Dissipation 41 Energy Generation 12 Energy Capacity 500 Matter Stores 300 Matter Capacity 300 Sight Range 16 Robot Scan Range 15 Terrain Scan Density 10 Armor Coverage 300 Resistance: TH 10 Utility Shielding 33 Evasion (%) 55 Recoil Reduction 3 Offensive Hacking 10 Item Schematics ----------------- None Robot Schematics ------------------ None Fabricated ------------ Nothing Alien Tech Used ----------------- None Achievements -------------- None Challenges ------------ None Game ------ Seed EfficiencyAssemblyOptics Manual? 0 Play Time 00:33:27 Cumulative 5.5 hours Start 2024.05.12 @ 01:20:40 End 2024.05.12 @ 15:48:40 Sessions 2 Manual Loads 0 Difficulty Rogue Special Mode None Game No. 6 Rogue 6 Adventurer 0 Explorer 0 Win Type - Total 0 Types 0/0/0/0/0/0/0/0/0 Lore% 13 Gallery% 15 Achievement% 12 Wizard Run 0 Options --------- Layout 1 ASCII 0 Keyboard 0 Movement Mouse Keybinds 0 Fullscreen 1 Font 24/Smallcaps Map View 50x35 Zoom Use 0% Tactical HUD 0 Map Filters NONE Filters NONE Steam 1 RUN: 2ed2d0ad-37c3-4213-b93d-cb3d9bfed769